fUSD/lending_fUSD_20240708
["ID","MTS","AMOUNT","RATE_DAILY","PERIOD"]
[331448089,1720421195430,-1000.87,0.00034028,34]
[331448090,1720421195475,-585.74,0.00034028,42]
[331448091,1720421195514,-500.0,0.00034028,32]
[331448092,1720421195552,-720.0,0.00034028,34]
[331448093,1720421195593,-769.9,0.00034028,36]
[331448094,1720421195636,-1000.87,0.00034028,35]
[331448095,1720421195679,-2121.62,0.00034028,34]
[331448096,1720421195720,-585.74,0.00034028,43]
[331448097,1720421195760,-500.0,0.00034028,33]
[331448098,1720421195799,-720.0,0.00034028,35]
[331448099,1720421195838,-769.9,0.00034028,37]
[331448100,1720421195878,-1000.87,0.00034028,36]
[331448101,1720421195917,-2121.62,0.00034028,35]
[331448102,1720421195958,-585.74,0.00034028,44]
[331448103,1720421195998,-720.0,0.00034028,36]
[331448104,1720421196038,-500.0,0.00034028,34]
[331448105,1720421196078,-1000.87,0.00034028,37]
[331448106,1720421196118,-2121.62,0.00034028,36]
[331448107,1720421196158,-720.0,0.00034028,37]
[331448108,1720421196197,-585.74,0.00034028,45]
[331448109,1720421196235,-769.9,0.00034028,38]
[331448110,1720421196278,-1000.87,0.00034028,38]
[331448111,1720421196318,-585.74,0.00034028,46]
[331448112,1720421196358,-769.9,0.00034028,39]
[331448113,1720421196398,-720.0,0.00034028,38]
[331448114,1720421196439,-585.74,0.00034028,47]
[331448115,1720421196815,-720.0,0.00034028,39]
[331448116,1720421196859,-585.74,0.00034028,48]
[331448117,1720421196899,-769.9,0.00034028,40]
[331448118,1720421196941,-1000.87,0.00034028,39]
[331448119,1720421196982,-2121.62,0.00034028,37]
[331448120,1720421197022,-500.0,0.00034028,30]
[331448121,1720421197062,-1000.87,0.00034028,40]
[331448122,1720421197102,-769.9,0.00034028,41]
[331448123,1720421197144,-720.0,0.00034028,40]
[331448124,1720421197183,-2121.62,0.00034028,38]
[331448125,1720421197222,-500.0,0.00034028,31]
[331448126,1720421197260,-585.74,0.00034028,49]
[331448127,1720421197300,-769.9,0.00034028,42]
[331448128,1720421197361,-1000.87,0.00034028,41]
[331448129,1720421197403,-2121.62,0.00034028,39]
[331448130,1720421197445,-720.0,0.00034028,41]
[331448131,1720421197486,-500.0,0.00034028,32]
[331448132,1720421197528,-585.74,0.00034028,50]
[331448133,1720421197573,-2121.62,0.00034028,40]
[331448134,1720421197614,-720.0,0.00034028,42]
[331448135,1720421197656,-500.0,0.00034028,33]
[331448136,1720421197699,-585.74,0.00034028,51]
[331448137,1720421197740,-769.9,0.00034028,43]
[331448138,1720421197784,-2121.62,0.00034028,41]
[331448139,1720421197826,-720.0,0.00034028,43]
[331448140,1720421197868,-1000.87,0.00034028,42]
[331448141,1720421197910,-500.0,0.00034028,34]
[331448142,1720421197953,-769.9,0.00034028,44]
[331448143,1720421197992,-2121.62,0.00034028,42]
[331448144,1720421198032,-1000.87,0.00034028,43]
[331448145,1720421198072,-507.23884533,0.00034028,35]
[331448146,1720421198110,-720.0,0.00034028,44]
[331448147,1720421198149,-585.74,0.00034028,52]
[331448148,1720421198186,-769.9,0.00034028,45]
[331448149,1720421198224,-2121.62,0.00034028,43]
[331448150,1720421198262,-1000.87,0.00034028,44]
[331448151,1720421198301,-720.0,0.00034028,45]
[331448152,1720421198338,-585.92858204,0.00034028,53]
[331448153,1720421198379,-2121.62,0.00034028,44]
[331448154,1720421198417,-1000.87,0.00034028,45]
[331448155,1720421198456,-720.0,0.00034028,46]
[331448156,1720421198497,-769.9,0.00034028,46]
[331448157,1720421198536,-2121.62,0.00034028,45]
[331448158,1720421198579,-720.0,0.00034028,47]
[331448159,1720421198620,-1000.87,0.00034028,46]
[331448160,1720421198661,-2121.62,0.00034028,46]
[331448161,1720421198701,-720.0,0.00034028,48]
[331448162,1720421198741,-1000.87,0.00034028,47]
[331448163,1720421198781,-2121.62,0.00034028,47]
[331448164,1720421198821,-769.9,0.00034028,47]
[331448165,1720421198862,-720.0,0.00034028,49]
[331448166,1720421198901,-1000.87,0.00034028,48]
[331448167,1720421198942,-769.9,0.00034028,48]
[331448168,1720421198981,-720.0,0.00034028,50]
[331448169,1720421199020,-500.0,0.00034028,30]
[331448170,1720421199070,-1000.87,0.00034028,49]
[331448171,1720421199112,-769.9,0.00034028,49]
[331448172,1720421199154,-720.0,0.00034028,51]
[331448173,1720421199193,-500.0,0.00034028,31]
[331448174,1720421199235,-2121.62,0.00034028,48]
[331448175,1720421199276,-769.9,0.00034028,50]
[331448176,1720421199317,-500.0,0.00034028,32]
[331448177,1720421199358,-2121.62,0.00034028,49]
[331448178,1720421199401,-720.0,0.00034028,52]
[331448179,1720421199443,-1000.87,0.00034028,50]
[331448180,1720421199487,-769.9,0.00034028,51]
[331448181,1720421199529,-2121.62,0.00034028,50]
[331448182,1720421199569,-500.0,0.00034028,33]
[331448183,1720421199610,-720.12,0.00034028,53]
[331448184,1720421199654,-769.9,0.00034028,52]
[331448185,1720421199695,-2121.62,0.00034028,51]
[331448186,1720421199736,-1000.87,0.00034028,51]
[331448187,1720421199777,-500.0,0.00034028,34]
[331448188,1720421199818,-770.00881797,0.00034028,53]
[331448189,1720421199859,-2121.62,0.00034028,52]
[331448190,1720421199903,-1000.87,0.00034028,52]
[331448191,1720421199944,-500.0,0.00034028,35]
[331448192,1720421199985,-1000.93,0.00034028,53]
[331448193,1720421200025,-2121.65,0.00034028,53]
[331448194,1720421200066,-500.0,0.00034028,36]
[331448195,1720421200107,-500.0,0.00034028,37]
[331448196,1720421200147,-500.0,0.00034028,38]
[331448197,1720421200188,-500.0,0.00034028,39]
[331448198,1720421200229,-500.0,0.00034028,40]
[331448199,1720421200269,-500.0,0.00034028,41]
[331448200,1720421200310,-500.0,0.00034028,30]
[331448201,1720421200350,-500.0,0.00034028,30]
[331448202,1720421200391,-500.0,0.00034028,42]
[331448203,1720421200431,-500.0,0.00034028,31]
[331448204,1720421200474,-500.0,0.00034028,31]
[331448205,1720421200516,-665.34,0.00034028,30]
[331448206,1720421200558,-500.0,0.00034028,30]
[331448207,1720421200601,-500.0,0.00034028,30]
[331448208,1720421200646,-500.0,0.00034028,32]
[331448209,1720421200688,-500.0,0.00034028,43]
[331448210,1720421200733,-500.0,0.00034028,32]
[331448211,1720421200776,-665.34,0.00034028,31]
[331448212,1720421200818,-500.0,0.00034028,31]
[331448213,1720421200861,-500.0,0.00034028,31]
[331448214,1720421200903,-500.0,0.00034028,33]
[331448215,1720421200943,-500.0,0.00034028,33]
[331448216,1720421200984,-665.34,0.00034028,32]
[331448217,1720421201025,-500.0,0.00034028,32]
[331448218,1720421201064,-500.0,0.00034028,32]
[331448219,1720421201384,-500.0,0.00034028,34]
[331448220,1720421201425,-1013.97,0.00034028,30]
[331448221,1720421201465,-500.0,0.00034028,44]
[331448222,1720421201504,-665.34,0.00034028,33]
[331448223,1720421201544,-500.0,0.00034028,33]
[331448224,1720421201583,-500.0,0.00034028,33]
[331448225,1720421201621,-500.0,0.00034028,35]
[331448226,1720421201662,-500.0,0.00034028,34]
[331448227,1720421201701,-1013.97,0.00034028,31]
[331448228,1720421201742,-529.73361887,0.00034028,45]
[331448229,1720421201782,-665.34,0.00034028,34]
[331448230,1720421201823,-500.0,0.00034028,34]
[331448231,1720421201863,-500.0,0.00034028,34]
[331448232,1720421201905,-500.0,0.00034028,36]
[331448233,1720421201948,-1013.97,0.00034028,32]
[331448234,1720421201988,-500.0,0.00034028,35]
[331448235,1720421202031,-665.34,0.00034028,35]
[331448236,1720421202073,-500.0,0.00034028,35]
[331448237,1720421202116,-500.0,0.00034028,35]
[331448238,1720421202155,-500.0,0.00034028,37]
[331448239,1720421202196,-1013.97,0.00034028,33]
[331448240,1720421202236,-500.0,0.00034028,36]
[331448241,1720421202275,-665.34,0.00034028,36]
[331448242,1720421202315,-500.0,0.00034028,36]
[331448243,1720421202354,-500.0,0.00034028,36]
[331448244,1720421202396,-500.0,0.00034028,38]
[331448245,1720421202435,-1013.97,0.00034028,34]
[331448246,1720421202475,-500.0,0.00034028,37]
[331448247,1720421202516,-665.34,0.00034028,37]
[331448248,1720421202557,-500.0,0.00034028,39]
[331448249,1720421202597,-648.31306529,0.00034028,37]
[331448250,1720421202641,-500.0,0.00034028,37]
[331448251,1720421202684,-1013.97,0.00034028,35]
[331448252,1720421202726,-665.34,0.00034028,38]
[331448253,1720421202768,-500.0,0.00034028,38]
[331448254,1720421202806,-500.0,0.00034028,40]
[331448255,1720421202845,-500.0,0.00034028,38]
[331448256,1720421202885,-665.34,0.00034028,39]
[331448257,1720421202925,-500.0,0.00034028,41]
[331448258,1720421202965,-500.0,0.00034028,39]
[331448259,1720421203007,-1260.41,0.00034028,30]
[331448260,1720421203044,-500.0,0.00034028,39]
[331448261,1720421203082,-1013.97,0.00034028,36]
[331448262,1720421203122,-665.34,0.00034028,40]
[331448263,1720421203160,-500.0,0.00034028,42]
[331448264,1720421203199,-1260.41,0.00034028,31]
[331448265,1720421203238,-500.0,0.00034028,40]
[331448266,1720421203276,-500.0,0.00034028,40]
[331448267,1720421203316,-665.34,0.00034028,41]
[331448268,1720421203358,-1260.41,0.00034028,32]
[331448269,1720421203401,-500.0,0.00034028,43]
[331448270,1720421203441,-500.0,0.00034028,41]
[331448271,1720421203481,-1013.97,0.00034028,37]
[331448272,1720421203521,-499.49966531,0.00034028,41]
[331448273,1720421203565,-665.34,0.00034028,42]
[331448274,1720421203609,-500.0,0.00034028,42]
[331448275,1720421203657,-1260.41,0.00034028,33]
[331448276,1720421203704,-500.0,0.00034028,44]
[331448277,1720421203744,-1013.97,0.00034028,38]
[331448278,1720421203782,-665.34,0.00034028,43]
[331448279,1720421203821,-554.5985671,0.00034028,43]
[331448280,1720421203861,-1260.41,0.00034028,34]
[331448281,1720421203899,-500.0,0.00034028,45]
[331448282,1720421203940,-1013.97,0.00034028,39]
[331448283,1720421203981,-665.34,0.00034028,44]
[331448284,1720421204021,-360.58900814,0.00034028,46]
[331448285,1720421204060,-1013.97,0.00034028,40]
[331448286,1720421204099,-665.34,0.00034028,45]
[331448287,1720421204140,-1260.41,0.00034028,35]
[331448288,1720421204178,-1013.97,0.00034028,41]
[331448289,1720421204216,-665.34,0.00034028,46]
[331448290,1720421204254,-1260.41,0.00034028,36]
[331448291,1720421204293,-1013.97,0.00034028,42]
[331448292,1720421204332,-665.34,0.00034028,47]
[331448293,1720421204372,-1013.97,0.00034028,43]
[331448294,1720421204412,-1260.41,0.00034028,37]
[331448295,1720421204451,-500.0,0.00034028,30]
[331448296,1720421204490,-500.0,0.00034028,31]
[331448297,1720421204530,-665.34,0.00034028,48]
[331448298,1720421204569,-1013.97,0.00034028,44]
[331448299,1720421204607,-500.0,0.00034028,30]
[331448300,1720421204651,-500.0,0.00034028,32]
[331448301,1720421204691,-665.34,0.00034028,49]
[331448302,1720421204730,-1260.41,0.00034028,38]
[331448303,1720421204773,-1013.97,0.00034028,45]
[331448304,1720421204812,-501.37489859,0.00034028,30]
[331448305,1720421204850,-665.34,0.00034028,50]
[331448306,1720421204893,-1260.41,0.00034028,39]
[331448307,1720421204934,-1013.97,0.00034028,46]
[331448308,1720421204975,-962.5,0.00034028,30]
[331448309,1720421205012,-1260.41,0.00034028,40]
[331448310,1720421205052,-665.34,0.00034028,51]
[331448311,1720421205091,-500.0,0.00034028,33]
[331448312,1720421205129,-1013.97,0.00034028,47]
[331448313,1720421205169,-962.5,0.00034028,31]
[331448314,1720421205208,-1260.41,0.00034028,41]
[331448315,1720421205244,-665.34,0.00034028,52]
[331448316,1720421205282,-500.0,0.00034028,34]
[331448317,1720421205321,-1013.97,0.00034028,48]
[331448318,1720421205357,-962.5,0.00034028,32]
[331448319,1720421205396,-665.50006151,0.00034028,53]
[331448320,1720421205436,-1013.97,0.00034028,49]
[331448321,1720421205476,-500.0,0.00034028,35]
[331448322,1720421205515,-962.5,0.00034028,33]
[331448323,1720421205806,-500.0,0.00034028,36]
[331448324,1720421205847,-1013.97,0.00034028,50]
[331448325,1720421205886,-1260.41,0.00034028,42]
[331448326,1720421205925,-962.5,0.00034028,34]
[331448327,1720421205966,-1013.97,0.00034028,51]
[331448328,1720421206007,-1260.41,0.00034028,43]
[331448329,1720421206046,-500.0,0.00034028,37]
[331448330,1720421206085,-962.5,0.00034028,35]
[331448331,1720421206122,-1260.41,0.00034028,44]
[331448332,1720421206160,-500.0,0.00034028,38]
[331448333,1720421206196,-1013.97,0.00034028,52]
[331448334,1720421206233,-962.5,0.00034028,36]
[331448335,1720421206271,-1260.41,0.00034028,45]
[331448336,1720421206308,-1014.01661039,0.00034028,53]
[331448337,1720421206345,-500.0,0.00034028,39]
[331448338,1720421206383,-962.5,0.00034028,37]
[331448339,1720421206423,-500.0,0.00034028,40]
[331448340,1720421206460,-1260.41,0.00034028,46]
[331448341,1720421206498,-962.5,0.00034028,38]
[331448342,1720421206536,-500.0,0.00034028,41]
[331448343,1720421206574,-962.5,0.00034028,39]
[331448344,1720421206615,-1260.41,0.00034028,47]
[331448345,1720421206654,-1160.37,0.00034028,30]
[331448346,1720421206692,-962.5,0.00034028,40]
[331448347,1720421206733,-1260.41,0.00034028,48]
[331448348,1720421206772,-1160.37,0.00034028,31]
[331448349,1720421206811,-500.0,0.00034028,42]
[331448350,1720421206851,-962.5,0.00034028,41]
[331448351,1720421206894,-1260.41,0.00034028,49]
[331448352,1720421206934,-1160.37,0.00034028,32]
[331448353,1720421206974,-962.5,0.00034028,42]
[331448354,1720421207013,-500.0,0.00034028,43]
[331448355,1720421207052,-1260.41,0.00034028,50]
[331448356,1720421207091,-500.0,0.00034028,30]
[331448357,1720421207130,-1160.37,0.00034028,33]
[331448358,1720421207168,-962.5,0.00034028,43]
[331448359,1720421207207,-1260.41,0.00034028,51]
[331448360,1720421207247,-500.0,0.00034028,31]
[331448361,1720421207285,-1160.37,0.00034028,34]
[331448362,1720421207322,-962.5,0.00034028,44]
[331448363,1720421207360,-1260.41,0.00034028,52]
[331448364,1720421207397,-500.0,0.00034028,32]
[331448365,1720421207435,-962.5,0.00034028,45]
[331448366,1720421207472,-1160.37,0.00034028,35]
[331448367,1720421207511,-1260.5856014,0.00034028,53]
[331448368,1720421207547,-500.0,0.00034028,33]
[331448369,1720421207586,-962.5,0.00034028,46]
[331448370,1720421207623,-1160.37,0.00034028,36]
[331448371,1720421207660,-500.0,0.00034028,34]
[331448372,1720421207699,-962.5,0.00034028,47]
[331448373,1720421207737,-1160.37,0.00034028,37]
[331448374,1720421207774,-500.0,0.00034028,35]
[331448375,1720421207810,-962.5,0.00034028,48]
[331448376,1720421207848,-1160.37,0.00034028,38]
[331448377,1720421207884,-500.0,0.00034028,36]
[331448378,1720421207921,-1160.37,0.00034028,39]
[331448379,1720421207959,-500.0,0.00034028,37]
[331448380,1720421207997,-962.5,0.00034028,49]
[331448381,1720421208035,-1160.37,0.00034028,40]
[331448382,1720421208073,-500.0,0.00034028,38]
[331448383,1720421208110,-1160.37,0.00034028,41]
[331448384,1720421208151,-962.5,0.00034028,50]
[331448385,1720421208188,-500.0,0.00034028,39]
[331448386,1720421208225,-1160.37,0.00034028,42]
[331448387,1720421208263,-962.5,0.00034028,51]
[331448388,1720421208299,-500.0,0.00034028,40]
[331448389,1720421208334,-1160.37,0.00034028,43]
[331448390,1720421208371,-962.5,0.00034028,52]
[331448391,1720421208409,-500.0,0.00034028,41]
[331448392,1720421208445,-1160.37,0.00034028,44]
[331448393,1720421208483,-962.72775557,0.00034028,53]
[331448394,1720421208521,-500.0,0.00034028,42]
[331448395,1720421208557,-1160.37,0.00034028,45]
[331448396,1720421208594,-500.0,0.00034028,43]
[331448397,1720421208630,-1160.37,0.00034028,46]
[331448398,1720421208670,-500.0,0.00034028,44]
[331448399,1720421208707,-1160.37,0.00034028,47]
[331448400,1720421208748,-500.0,0.00034028,30]
[331448401,1720421208786,-500.0,0.00034028,45]
[331448402,1720421208823,-1160.37,0.00034028,48]
[331448403,1720421208859,-500.0,0.00034028,31]
[331448404,1720421208899,-500.0,0.00034028,32]
[331448405,1720421208938,-500.0,0.00034028,30]
[331448406,1720421208978,-452.17669833,0.00034028,46]
[331448407,1720421209025,-1160.37,0.00034028,49]
[331448408,1720421209063,-500.0,0.00034028,33]
[331448409,1720421209103,-500.0,0.00034028,31]
[331448410,1720421209145,-500.0,0.00034028,34]
[331448411,1720421209186,-1160.37,0.00034028,50]
[331448412,1720421209226,-500.0,0.00034028,35]
[331448413,1720421209267,-1160.37,0.00034028,51]
[331448414,1720421209307,-500.0,0.00034028,36]
[331448415,1720421209347,-1160.37,0.00034028,52]
[331448416,1720421209387,-500.0,0.00034028,37]
[331448417,1720421209430,-1160.56432981,0.00034028,53]
[331448418,1720421209470,-522.5,0.00034028,38]
[331448419,1720421209510,-500.0,0.00034028,30]
[331448420,1720421209550,-500.0,0.00034028,31]
[331448421,1720421209589,-500.0,0.00034028,32]
[331448422,1720421209626,-500.0,0.00034028,33]
[331448423,1720421209666,-500.0,0.00034028,34]
[331448424,1720421209706,-500.0,0.00034028,30]
[331448425,1720421209744,-500.0,0.00034028,35]
[331448426,1720421210058,-500.0,0.00034028,31]
[331448427,1720421210099,-500.0,0.00034028,36]
[331448428,1720421210138,-500.0,0.00034028,32]
[331448429,1720421210177,-2338.73,0.00034028,30]
[331448430,1720421210216,-500.0,0.00034028,37]
[331448431,1720421210254,-500.0,0.00034028,30]
[331448432,1720421210292,-2338.73,0.00034028,31]
[331448433,1720421210331,-500.0,0.00034028,33]
[331448434,1720421210369,-500.0,0.00034028,38]
[331448435,1720421210408,-500.0,0.00034028,31]
[331448436,1720421210446,-500.0,0.00034028,34]
[331448437,1720421210484,-2338.73,0.00034028,32]
[331448438,1720421210522,-500.0,0.00034028,39]
[331448439,1720421210560,-500.0,0.00034028,32]
[331448440,1720421210598,-1055.37,0.00034028,30]
[331448441,1720421210636,-2338.73,0.00034028,33]
[331448442,1720421210679,-500.0,0.00034028,40]
[331448443,1720421210718,-1055.37,0.00034028,31]
[331448444,1720421210757,-2338.73,0.00034028,34]
[331448445,1720421210794,-500.0,0.00034028,35]
[331448446,1720421210832,-500.0,0.00034028,41]
[331448447,1720421210870,-1055.37,0.00034028,32]
[331448448,1720421210908,-2338.73,0.00034028,35]
[331448449,1720421210946,-500.0,0.00034028,33]
[331448450,1720421210984,-417.64190447,0.00034028,36]
[331448451,1720421211022,-500.0,0.00034028,42]
[331448452,1720421211059,-2338.73,0.00034028,36]
[331448453,1720421211096,-500.0,0.00034028,34]
[331448454,1720421211134,-1055.37,0.00034028,33]
[331448455,1720421211174,-500.0,0.00034028,43]
[331448456,1720421211212,-2338.73,0.00034028,37]
[331448457,1720421211251,-500.0,0.00034028,35]
[331448458,1720421211288,-1055.37,0.00034028,34]
[331448459,1720421211325,-500.0,0.00034028,44]
[331448460,1720421211362,-500.0,0.00034028,36]
[331448461,1720421211399,-1055.37,0.00034028,35]
[331448462,1720421211436,-2338.73,0.00034028,38]
[331448463,1720421211474,-500.0,0.00034028,45]
[331448464,1720421211510,-1055.37,0.00034028,36]
[331448465,1720421211548,-2338.73,0.00034028,39]
[331448466,1720421211590,-500.0,0.00034028,37]
[331448467,1720421211628,-500.0,0.00034028,46]
[331448468,1720421211665,-1055.37,0.00034028,37]
[331448469,1720421211703,-2338.73,0.00034028,40]
[331448470,1720421211746,-500.0,0.00034028,38]
[331448471,1720421211784,-500.0,0.00034028,47]
[331448472,1720421211823,-2338.73,0.00034028,41]
[331448473,1720421211860,-500.0,0.00034028,39]
[331448474,1720421211899,-1055.37,0.00034028,38]
[331448475,1720421211936,-500.0,0.00034028,48]
[331448476,1720421211973,-2338.73,0.00034028,42]
[331448477,1720421212011,-500.0,0.00034028,40]
[331448478,1720421212049,-1055.37,0.00034028,39]
[331448479,1720421212089,-2338.73,0.00034028,43]
[331448480,1720421212128,-1055.37,0.00034028,40]
[331448481,1720421212169,-500.0,0.00034028,41]
[331448482,1720421212207,-2338.73,0.00034028,44]
[331448483,1720421212245,-1055.37,0.00034028,41]
[331448484,1720421212283,-500.0,0.00034028,49]
[331448485,1720421212322,-1055.37,0.00034028,42]
[331448486,1720421212360,-2338.73,0.00034028,45]
[331448487,1720421212400,-500.0,0.00034028,42]
[331448488,1720421212438,-500.0,0.00034028,30]
[331448489,1720421212475,-586.33782266,0.00034028,50]
[331448490,1720421212513,-2338.73,0.00034028,46]
[331448491,1720421212551,-1055.37,0.00034028,43]
[331448492,1720421212589,-500.0,0.00034028,31]
[331448493,1720421212626,-500.0,0.00034028,43]
[331448494,1720421212664,-2338.73,0.00034028,47]
[331448495,1720421212702,-1055.37,0.00034028,44]
[331448496,1720421212740,-500.0,0.00034028,32]
[331448497,1720421212777,-500.0,0.00034028,44]
[331448498,1720421212815,-1055.37,0.00034028,45]
[331448499,1720421212854,-500.0,0.00034028,45]
[331448500,1720421212894,-500.0,0.00034028,33]
[331448501,1720421212937,-2338.73,0.00034028,48]
[331448502,1720421212976,-500.0,0.00034028,34]
[331448503,1720421213014,-518.53939176,0.00034028,46]
[331448504,1720421213051,-1055.37,0.00034028,46]
[331448505,1720421213088,-482.40102551,0.00034028,35]
[331448506,1720421213126,-2338.73,0.00034028,49]
[331448507,1720421213163,-1055.37,0.00034028,47]
[331448508,1720421213201,-2338.73,0.00034028,50]
[331448509,1720421213241,-1055.37,0.00034028,48]
[331448510,1720421213279,-2338.73,0.00034028,51]
[331448511,1720421213323,-500.0,0.00034028,30]
[331448512,1720421213366,-521.28448408,0.00034028,30]
[331448513,1720421213404,-1055.37,0.00034028,49]
[331448514,1720421213444,-2338.73,0.00034028,52]
[331448515,1720421213484,-500.0,0.00034028,31]
[331448516,1720421213524,-1055.37,0.00034028,50]
[331448517,1720421213564,-2338.86912931,0.00034028,53]
[331448518,1720421213604,-500.0,0.00034028,32]
[331448519,1720421213645,-1055.37,0.00034028,51]
[331448520,1720421213688,-500.0,0.00034028,33]
[331448521,1720421213730,-1055.37,0.00034028,52]
[331448522,1720421213772,-500.0,0.00034028,34]
[331448523,1720421213813,-500.44148219,0.00034028,30]
[331448524,1720421213853,-1055.55855044,0.00034028,53]
[331448525,1720421213898,-500.0,0.00034028,35]
[331448526,1720421213940,-500.0,0.00034028,36]
[331448527,1720421213982,-500.0,0.00034028,30]
[331448528,1720421214025,-500.0,0.00034028,37]
[331448529,1720421214065,-500.0,0.00034028,31]
[331448530,1720421214387,-500.0,0.00034028,38]
[331448531,1720421214430,-511.06920985,0.00034028,32]
[331448532,1720421214472,-500.0,0.00034028,39]
[331448533,1720421214515,-500.0,0.00034028,40]
[331448534,1720421214556,-500.0,0.00034028,41]
[331448535,1720421214596,-500.0,0.00034028,42]
[331448536,1720421214638,-500.0,0.00034028,43]
[331448537,1720421214682,-500.0,0.00034028,44]
[331448538,1720421214727,-500.0,0.00034028,45]
[331448539,1720421214770,-354.35444726,0.00034028,46]
[331448540,1720421214812,-500.0,0.00034028,30]
[331448541,1720421214852,-500.0,0.00034028,31]
[331448542,1720421214892,-500.0,0.00034028,32]
[331448543,1720421214933,-500.0,0.00034028,30]
[331448544,1720421214973,-468.97177974,0.00034028,33]
[331448545,1720421215013,-500.0,0.00034028,31]
[331448546,1720421215054,-500.0,0.00034028,32]
[331448547,1720421215093,-752.75,0.00034028,30]
[331448548,1720421215132,-500.0,0.00034028,33]
[331448549,1720421215171,-752.75,0.00034028,31]
[331448550,1720421215210,-500.0,0.00034028,34]
[331448551,1720421215251,-752.75,0.00034028,32]
[331448552,1720421215292,-500.0,0.00034028,35]
[331448553,1720421215332,-500.0,0.00034028,30]
[331448554,1720421215377,-752.75,0.00034028,33]
[331448555,1720421215419,-500.0,0.00034028,31]
[331448556,1720421215458,-752.75,0.00034028,34]
[331448557,1720421215499,-500.0,0.00034028,32]
[331448558,1720421215540,-500.0,0.00034028,36]
[331448559,1720421215580,-500.0,0.00034028,30]
[331448560,1720421215620,-752.75,0.00034028,35]
[331448561,1720421215663,-500.0,0.00034028,30]
[331448562,1720421215703,-509.03727697,0.00034028,33]
[331448563,1720421215742,-500.0,0.00034028,37]
[331448564,1720421215783,-517.77335206,0.00034028,31]
[331448565,1720421215825,-752.75,0.00034028,36]
[331448566,1720421215865,-500.0,0.00034028,31]
[331448567,1720421215905,-247.50841072,0.00034028,38]
[331448568,1720421215943,-752.75,0.00034028,37]
[331448569,1720421215981,-500.0,0.00034028,30]
[331448570,1720421216018,-500.0,0.00034028,30]
[331448571,1720421216055,-500.0,0.00034028,32]
[331448572,1720421216093,-752.75,0.00034028,38]
[331448573,1720421216131,-494.19841855,0.00034028,31]
[331448574,1720421216174,-500.0,0.00034028,31]
[331448575,1720421216218,-752.75,0.00034028,39]
[331448576,1720421216255,-500.0,0.00034028,32]
[331448577,1720421216292,-500.0,0.00034028,33]
[331448578,1720421216330,-752.75,0.00034028,40]
[331448579,1720421216368,-500.0,0.00034028,33]
[331448580,1720421216406,-624.27097536,0.00034028,34]
[331448581,1720421216444,-752.75,0.00034028,41]
[331448582,1720421216481,-500.0,0.00034028,34]
[331448583,1720421216519,-500.0,0.00034028,30]
[331448584,1720421216557,-752.75,0.00034028,42]
[331448585,1720421216596,-500.0,0.00034028,35]
[331448586,1720421216634,-500.0,0.00034028,31]
[331448587,1720421216674,-500.0,0.00034028,36]
[331448588,1720421216713,-500.0,0.00034028,32]